bitfinex/quotes_SOLUSD_20250108
["timestamp","ask_amount","ask_price","bid_price","bid_amount"]
[1736336443891,3.32,194.92,194.81,0.55832355]
[1736336444583,3.3,194.91,194.82,30.254384]
[1736336444757,3.3,194.91,194.83,0.55823759]
[1736336445462,3.3,194.96,194.85,25.26726743]
[1736336445660,3.3,194.96,194.87,25.26726743]
[1736336445883,3.3,194.96,194.88,0.55774486]
[1736336446785,3.3,194.96,194.86,0.55785041]
[1736336447825,3.3,194.96,194.85,0.55791419]
[1736336448086,0.96193459,194.95,194.82,7.03564384]
[1736336448384,0.96204008,194.94,194.82,7.03564384]
[1736336448560,0.96198792,194.95,194.82,32.30291127]
[1736336448890,3.3,194.96,194.85,25.26726743]
[1736336449095,3.3,194.96,194.86,0.55785978]
[1736336449883,0.9618191,194.95,194.84,0.55791287]
[1736336450492,3.3,194.96,194.84,0.55791287]
[1736336450874,3.3,194.96,194.84,25.8251803]
[1736336451196,0.961828,195.02,194.86,25.26726743]
[1736336451395,3.24,195.01,194.87,0.55771628]
[1736336451592,20.96172009,195.0,194.87,0.55771628]
[1736336451982,23.776884,194.99,194.82,7.03539418]
[1736336452190,20.0,194.94,194.82,7.03539418]
[1736336452380,3.38,194.93,194.84,25.26726743]
[1736336452575,3.38,194.93,194.85,0.55788033]
[1736336453095,3.38,194.93,194.83,0.55814378]
[1736336453498,3.38,194.93,194.82,6.4775]
[1736336453882,3.38,194.93,194.83,0.5583525]
[1736336454093,3.38,194.93,194.82,6.4775]
[1736336454094,0.96203344,194.92,194.82,6.4775]
[1736336455887,4.34210459,194.93,194.82,6.4775]
[1736336456300,0.96210459,194.93,194.82,6.4775]
[1736336456506,3.34,194.94,194.83,0.55841691]
[1736336456884,0.96190161,194.93,194.82,6.4775]
[1736336457098,3.34,194.94,194.83,0.55835549]
[1736336458394,23.776884,194.93,194.83,0.55835549]
[1736336458597,20.0,194.9,194.77,6.6354]
[1736336458996,0.9619675,194.93,194.77,6.6354]
[1736336459202,3.32,194.92,194.78,0.55853655]
[1736336459406,0.96216806,194.92,194.78,0.55853655]
[1736336459606,3.32,194.91,194.78,0.55853655]
[1736336460302,3.3,194.9,194.79,25.26726743]
[1736336460503,3.3,194.9,194.8,0.55827747]
[1736336461910,3.3,194.9,194.77,7.19385151]
[1736336462100,20.96230042,194.89,194.77,6.6354]
[1736336462308,44.73918442,194.89,194.77,6.6354]
[1736336462505,3.28,194.88,194.78,0.55889326]
[1736336463016,3.28,194.89,194.78,25.82616069]
[1736336463326,0.96208453,194.9,194.77,7.19384373]
[1736336463501,3.28,194.89,194.77,7.19384373]
[1736336463807,0.96218548,194.88,194.77,6.6354]
[1736336463998,20.0,194.8,194.71,6.0657]
[1736336464197,4.22269447,194.79,194.71,6.0657]
[1736336464409,20.96275739,194.8,194.71,6.0657]
[1736336464615,3.26,194.83,194.71,6.0657]
[1736336464809,0.96263519,194.82,194.71,6.0657]
[1736336464983,23.26,194.83,194.72,0.55954504]
[1736336465189,23.26,194.83,194.72,25.82681247]
[1736336465510,3.26,194.83,194.72,25.82681247]
[1736336465898,3.26,194.83,194.73,25.26726743]
[1736336466097,27.036884,194.83,194.74,0.55919482]
[1736336466295,0.96246008,194.82,194.71,6.0657]
[1736336466497,3.26,194.83,194.72,0.55950062]
[1736336466700,3.26,194.83,194.72,25.82676805]
[1736336467211,3.26,194.82,194.72,0.55950062]
[1736336467424,20.0,194.84,194.74,25.26726743]
[1736336467596,3.26,194.88,194.77,25.26726743]
[1736336467909,3.26,194.9,194.78,0.55868135]
[1736336468115,3.26,194.9,194.79,7.8379]
[1736336468326,3.26,194.9,194.8,0.55857792]
[1736336469008,3.26,194.9,194.81,25.26726743]
[1736336469313,3.26,194.9,194.8,0.55826859]
[1736336469496,3.26,194.9,194.8,25.82553602]
[1736336470328,0.96208781,194.96,194.81,25.26726743]
[1736336470620,3.26,194.95,194.83,25.26726743]
[1736336470792,3.26,194.95,194.84,0.55820873]
[1736336471137,4.22196485,194.95,194.84,0.55820873]
[1736336471287,3.24,194.96,194.86,25.26726743]
[1736336471491,3.24,195.01,194.89,25.26726743]
[1736336471686,3.24,195.01,194.9,0.55760538]
[1736336471915,23.24,195.01,194.9,0.55760538]
[1736336472114,23.24,195.01,194.89,0.55753665]
[1736336472115,0.96163099,195.0,194.89,0.55753665]
[1736336472299,0.96163099,195.0,194.87,0.55769658]
[1736336472907,0.96163099,195.0,194.86,0.55783399]
[1736336473495,0.96163099,195.0,194.87,25.26726743]
[1736336473696,3.24,195.01,194.89,25.26726743]
[1736336473924,0.96171177,195.03,194.91,25.26726743]
[1736336474097,3.24,195.02,194.92,0.55738297]
[1736336474293,20.0,195.04,194.92,0.55738297]
[1736336474595,4.20157063,195.03,194.9,1.6385]
[1736336474816,4.20157063,195.03,194.91,0.55741593]
[1736336474998,3.24,195.03,194.92,25.26726743]
[1736336475217,3.24,195.03,194.93,0.55728852]
[1736336475414,3.24,195.03,194.93,25.82455595]
[1736336475612,3.24,195.03,194.95,25.26726743]
[1736336475810,10.69829833,195.09,194.98,25.26726743]
[1736336476007,10.69829833,195.09,194.99,25.82400552]
[1736336476008,13.91829833,195.09,194.99,25.82400552]
[1736336476609,20.0,195.06,194.99,25.82400552]
[1736336476803,3.22,195.09,194.97,25.26726743]
[1736336477004,0.96124581,195.08,194.95,0.55676629]
[1736336477203,23.776884,195.07,194.95,0.55676629]
[1736336477412,23.22,195.09,194.95,0.55676629]
[1736336477413,3.22,195.09,194.97,25.26726743]
[1736336477619,3.22,195.09,195.0,25.26726743]
[1736336477845,3.22,195.13,195.02,25.26726743]
[1736336478009,3.22,195.13,195.03,0.5561957]
[1736336478211,20.0,195.14,195.04,31.60496743]
[1736336478524,4.18088803,195.19,195.06,25.26726743]
[1736336478723,4.18088803,195.19,195.07,0.55587204]
[1736336479326,3.22,195.19,195.07,25.82313947]
[1736336479702,3.22,195.19,195.08,25.26726743]
[1736336479914,3.22,195.19,195.09,25.82293474]
[1736336480434,0.96069632,195.22,195.09,25.82293474]
[1736336480610,4.18061082,195.23,195.1,25.26726743]
[1736336480815,8.77063624,195.25,195.12,25.26726743]
[1736336481014,20.0,195.24,195.13,25.82247573]
[1736336481417,20.96045331,195.24,195.13,0.5552083]
[1736336481619,20.0,195.24,195.13,0.5552083]
[1736336481823,0.96045331,195.25,195.13,0.5552083]
[1736336482017,0.96046591,195.26,195.14,0.55520649]
[1736336482209,20.0,195.24,195.14,0.55520649]
[1736336482411,0.96046591,195.26,195.14,0.55520649]
[1736336482817,20.0,195.24,195.14,0.55520649]
[1736336483012,3.22,195.29,195.15,31.26756743]
[1736336483214,3.22,195.29,195.16,0.55484284]
[1736336483432,0.96028408,195.28,195.16,0.55484284]
[1736336483632,3.2,195.3,195.16,25.82211027]
[1736336483930,0.96024127,195.28,195.16,0.55484284]
[1736336484149,20.96031568,195.29,195.16,0.55484284]
[1736336484650,20.0,195.29,195.16,25.82211027]
[1736336485816,20.0,195.25,195.16,0.55484284]
[1736336486011,20.0,195.25,195.15,6.0003]
[1736336486213,20.0,195.25,195.15,31.26756743]
[1736336486448,3.2,195.3,195.18,25.26726743]
[1736336487332,3.2,195.3,195.19,25.26726743]
[1736336487571,3.18,195.35,195.22,25.26726743]
[1736336487855,3.18,195.35,195.24,25.26726743]
[1736336488009,17.64,195.41,195.27,25.26726743]
[1736336488213,20.82,195.41,195.28,25.26726743]
[1736336488426,20.82,195.41,195.26,25.26726743]
[1736336488624,23.776884,195.4,195.25,25.26726743]
[1736336488839,20.0,195.37,195.23,6.3041]
[1736336489047,0.96000741,195.36,195.24,0.55428949]
[1736336489534,3.2,195.35,195.24,0.55428949]
[1736336489726,0.95999832,195.34,195.23,6.85837131]
[1736336489921,0.95999832,195.34,195.17,137.1]
[1736336489922,23.776884,195.32,195.18,6.60896545]
[1736336490126,20.0,195.27,195.18,6.0546]
[1736336490337,3.18,195.26,195.18,6.0546]
[1736336490637,3.18,195.33,195.19,25.82204641]
[1736336490839,3.18,195.33,195.24,25.26726743]
[1736336491139,3.18,195.33,195.25,25.82118322]
[1736336491337,0.96003712,195.39,195.27,25.26726743]
[1736336491540,3.18,195.39,195.29,7.9108]
[1736336491724,20.0,195.38,195.3,0.55358078]
[1736336491916,3.2,195.4,195.3,0.55358078]
[1736336492119,0.95965801,195.39,195.29,7.9108]
[1736336492326,17.64,195.41,195.3,0.55386755]
[1736336492645,17.64,195.41,195.3,25.82113498]
[1736336492947,3.2,195.4,195.3,0.55386755]
[1736336493250,17.64,195.41,195.3,25.82113498]
[1736336493618,17.64,195.41,195.31,25.26726743]
[1736336493820,20.0,195.38,195.3,0.55386755]
[1736336494229,17.64,195.41,195.3,0.55386755]
[1736336494421,17.64,195.41,195.32,23.776884]
[1736336494620,17.64,195.41,195.33,0.55300281]
[1736336495143,17.64,195.41,195.34,23.776884]
[1736336495323,17.64,195.41,195.35,0.55276859]
[1736336495517,17.64,195.41,195.38,23.776884]
[1736336495737,17.64,195.41,195.39,0.5526253]
[1736336496048,9.3068,195.41,195.4,187.73805143]
[1736336496433,7.6402,195.41,195.4,50.63805143]
[1736336496741,7.6402,195.41,195.4,188.29014485]
[1736336496946,7.6402,195.41,195.4,187.73805143]
[1736336497375,15.37451638,195.44,195.43,49.04415143]
[1736336497543,15.37451638,195.44,195.43,186.69609572]
[1736336497858,15.37451638,195.44,195.43,186.14415143]
[1736336498629,15.37451638,195.44,195.43,160.876884]
[1736336499841,15.37451638,195.44,195.43,49.04415143]
[1736336500042,15.37451638,195.44,195.43,186.69612241]
[1736336500234,15.37451638,195.44,195.43,186.14415143]
[1736336500437,15.37451638,195.44,195.43,160.876884]
[1736336500649,15.37451638,195.44,195.4,162.36726743]
[1736336500844,15.37451638,195.44,195.41,0.55234176]
[1736336501151,15.37451638,195.44,195.41,24.32922576]
[1736336501357,15.37451638,195.44,195.41,0.55234176]
[1736336501673,15.37451638,195.44,195.37,6.3833]
[1736336501983,15.37451638,195.44,195.38,0.55275074]
[1736336502128,15.37451638,195.44,195.36,0.55275074]
[1736336502334,3.18,195.43,195.36,0.55275074]
[1736336502744,20.0,195.41,195.33,0.55308021]
[1736336503368,20.0,195.41,195.32,0.55330852]
[1736336503662,20.0,195.41,195.3,0.55354234]
[1736336503663,21.5447,195.4,195.3,0.55354234]
[1736336503847,1.5447,195.4,195.3,0.55354234]
[1736336504047,1.5447,195.4,195.26,0.55367344]
[1736336504257,21.5447,195.4,195.27,25.26726743]
[1736336504577,1.5447,195.4,195.31,49.04415143]
[1736336504739,1.5447,195.4,195.32,0.55315701]
[1736336505854,1.5447,195.4,195.29,0.55353746]
[1736336506751,1.5447,195.4,195.3,0.55336966]
[1736336506942,1.5447,195.4,195.31,23.776884]
[1736336507255,1.5447,195.4,195.32,0.55318131]
[1736336507449,15.37451638,195.44,195.34,25.26726743]
[1736336507643,15.37451638,195.44,195.35,24.32966968]
[1736336508033,15.37451638,195.44,195.36,23.776884]
[1736336508354,15.37451638,195.44,195.37,0.55287679]
[1736336509157,15.37451638,195.44,195.36,137.1]
[1736336509353,20.0,195.41,195.3,6.187]
[1736336509651,20.0,195.41,195.31,24.33014881]
[1736336509858,20.0,195.41,195.31,0.55326481]
[1736336510061,20.0,195.41,195.31,24.33014881]
[1736336510246,20.0,195.41,195.31,49.59741624]
[1736336510446,20.0,195.41,195.31,24.33014881]
[1736336511259,20.0,195.41,195.31,0.55326481]
[1736336511459,20.0,195.41,195.3,24.33006127]
[1736336511835,1.5889,195.4,195.3,0.55317727]
[1736336512048,3.16,195.39,195.3,0.55317727]
[1736336512452,3.16,195.39,195.28,0.55359126]
[1736336512840,3.16,195.38,195.28,0.55359126]
[1736336513242,3.14,195.37,195.28,0.55359126]
[1736336513561,3.14,195.37,195.29,0.55362954]
[1736336513939,3.14,195.37,195.25,0.55367464]
[1736336514142,3.14,195.37,195.25,24.33055864]
[1736336514446,23.14,195.37,195.25,0.55367464]
[1736336515046,3.14,195.36,195.25,24.33055864]
[1736336515647,1.5889,195.4,195.28,25.26726743]
[1736336515840,3.12,195.39,195.3,23.776884]
[1736336516040,3.12,195.39,195.31,0.55328557]
[1736336516361,20.0,195.38,195.31,0.55328557]
[1736336516662,4.7089,195.4,195.31,0.55328557]
[1736336516954,4.7089,195.4,195.32,0.55339935]
[1736336517347,20.0,195.38,195.29,0.55341041]
[1736336518255,1.5889,195.4,195.33,25.26726743]
[1736336518462,15.37451638,195.44,195.35,23.776884]
[1736336518646,15.37451638,195.44,195.36,0.55273797]
[1736336519272,15.37451638,195.44,195.36,24.32962197]
[1736336519638,20.0,195.41,195.36,24.32962197]
[1736336519838,15.37451638,195.44,195.36,24.32962197]
[1736336520039,20.0,195.41,195.36,0.55273797]
[1736336520351,20.0,195.41,195.37,0.55304114]
[1736336520533,20.0,195.41,195.32,24.32991086]
[1736336520937,20.0,195.41,195.32,161.42991086]
[1736336521157,20.0,195.41,195.32,160.876884]
[1736336521352,20.0,195.41,195.32,137.1]
[1736336521837,20.0,195.41,195.32,162.36726743]
[1736336522237,20.0,195.41,195.33,24.32988868]
[1736336522964,20.0,195.41,195.33,49.59715611]
[1736336523279,15.37451638,195.44,195.35,186.14415143]
[1736336523588,15.37451638,195.44,195.33,24.32988868]
[1736336523589,15.37451638,195.44,195.38,160.876884]
[1736336523879,15.37451638,195.44,195.4,160.876884]
[1736336524086,15.37451638,195.44,195.41,0.55237887]
[1736336524371,15.37451638,195.44,195.41,137.65237887]
[1736336524573,15.37451638,195.44,195.42,160.876884]
[1736336524782,15.37451638,195.44,195.43,0.55206851]
[1736336525076,15.37451638,195.44,195.43,161.42895251]
[1736336525244,15.37451638,195.44,195.43,160.876884]
[1736336525741,15.37451638,195.44,195.43,137.1]
[1736336526175,15.37451638,195.44,195.39,137.1]
[1736336526346,20.0,195.41,195.34,137.1]
[1736336526547,20.0,195.41,195.35,0.55303536]
[1736336528047,15.37451638,195.44,195.35,24.32991936]
[1736336528251,15.37451638,195.44,195.38,23.776884]
[1736336528446,15.37451638,195.44,195.39,0.55246807]
[1736336529459,20.0,195.41,195.39,0.55246807]
[1736336529760,20.0,195.41,195.33,137.1]
[1736336530066,20.0,195.39,195.29,137.1]
[1736336530239,20.0,195.39,195.3,0.55346609]
[1736336530448,20.0,195.37,195.3,0.55346609]
[1736336531063,3.1,195.38,195.3,0.55346609]
[1736336531363,23.1,195.38,195.29,0.55349204]
[1736336532165,23.1,195.38,195.28,0.55378885]
[1736336532387,3.1,195.38,195.28,0.55378885]
[1736336532540,0.95982481,195.37,195.23,162.36726743]
[1736336532747,0.95982481,195.37,195.24,0.55404337]
[1736336532978,3.1,195.38,195.24,24.33092737]
[1736336533149,3.1,195.38,195.24,49.5981948]
[1736336533573,3.1,195.38,195.24,24.33092737]
[1736336533982,4.6511,195.4,195.29,23.776884]
[1736336534158,20.0,195.39,195.3,0.55357878]
[1736336534356,20.0,195.37,195.28,0.55370432]
[1736336534555,20.0,195.37,195.28,24.33058832]
[1736336534759,3.08,195.39,195.28,24.33058832]
[1736336535259,20.0,195.37,195.28,0.55370432]
[1736336535464,20.95978916,195.37,195.27,137.1]
[1736336535658,20.95978916,195.37,195.22,137.1]
[1736336535870,20.0,195.32,195.23,137.65425595]
[1736336536085,3.08,195.31,195.19,137.1]
[1736336536260,1.5483,195.3,195.2,0.55464103]
[1736336537762,20.0,195.28,195.17,137.1]
[1736336537951,20.0,195.24,195.18,137.65478248]
[1736336538151,20.0,195.24,195.18,137.1]
[1736336538959,20.0,195.24,195.14,137.1]
[1736336539161,20.0,195.24,195.15,0.55486591]
[1736336539487,20.0,195.24,195.15,24.33174991]
[1736336539669,3.08,195.23,195.15,0.55486591]
[1736336540157,20.0,195.2,195.1,137.1]
[1736336540355,20.0,195.2,195.11,0.55542411]
[1736336540662,20.0,195.2,195.09,0.55552837]
[1736336540857,1.5658,195.22,195.09,24.33241237]
[1736336541056,1.5658,195.22,195.11,49.04415143]
[1736336541260,1.5658,195.22,195.12,0.55514894]
[1736336541461,1.5658,195.22,195.13,49.04415143]
[1736336541661,1.5658,195.22,195.15,23.776884]
[1736336541857,1.5658,195.22,195.16,0.55477812]
[1736336542594,11.0837,195.27,195.17,23.776884]
[1736336542889,8.0037,195.27,195.18,0.55452786]
[1736336543073,20.0,195.24,195.18,0.55452786]
[1736336543860,8.0037,195.27,195.18,0.55452786]
[1736336544269,20.0,195.24,195.19,23.776884]
[1736336544474,1.5199,195.27,195.2,0.55444448]
[1736336544668,1.5199,195.27,195.21,23.776884]
[1736336544969,1.5199,195.27,195.22,0.55436083]
[1736336545801,1.5199,195.27,195.22,25.82162826]
[1736336546094,1.5199,195.27,195.23,23.776884]
[1736336546257,20.0,195.28,195.24,0.55401894]
[1736336546883,20.0,195.28,195.17,137.1]
[1736336547061,2.60584674,195.27,195.14,137.1]
[1736336547267,2.60584674,195.27,195.15,0.55503554]
[1736336547803,2.60584674,195.27,195.15,24.33191954]
[1736336547972,1.6456,195.27,195.15,24.33191954]
[1736336548162,1.6456,195.27,195.15,49.59918697]
[1736336548363,1.6456,195.27,195.17,25.26726743]
[1736336548669,1.6456,195.27,195.18,24.33151262]
[1736336548864,1.6456,195.27,195.2,23.776884]
[1736336549058,1.6456,195.27,195.21,0.55436297]
[1736336550261,1.6456,195.27,195.15,140.16]
[1736336550464,1.6456,195.27,195.16,0.55492344]
[1736336550765,1.6456,195.27,195.16,24.33180744]
[1736336550966,1.6456,195.27,195.16,49.59907487]
[1736336551178,1.6456,195.27,195.17,25.26726743]
[1736336551376,1.6456,195.27,195.18,0.55460071]
[1736336553080,1.6456,195.27,195.18,25.82186814]
[1736336553278,1.6456,195.27,195.2,25.26726743]
[1736336553476,1.6456,195.27,195.21,23.776884]
[1736336553683,1.6456,195.27,195.21,161.43105937]
[1736336553981,1.6456,195.27,195.21,160.876884]
[1736336554175,1.6456,195.27,195.21,186.14415143]
[1736336554562,6.2405,195.31,195.23,186.14415143]
[1736336554882,1.6567,195.32,195.26,49.04415143]
[1736336555088,1.6567,195.32,195.27,0.553704]
[1736336556095,1.6567,195.32,195.28,23.776884]
[1736336556295,7.9798,195.36,195.29,0.5534832]
[1736336556779,1.6086,195.36,195.29,0.5534832]
[1736336557174,1.6086,195.36,195.29,24.3303672]
[1736336559366,1.6086,195.36,195.29,161.4303672]
[1736336559568,1.6086,195.36,195.29,160.876884]
[1736336560173,1.6086,195.36,195.29,186.14415143]
[1736336560559,1.6086,195.36,195.32,20.0]
[1736336560865,1.6086,195.36,195.33,0.55320457]
[1736336561464,7.9982,195.41,195.33,0.55320457]
[1736336563287,7.9982,195.41,195.33,25.820472]
[1736336563479,1.6156,195.41,195.36,23.776884]
[1736336563667,1.6156,195.41,195.37,0.5527358]
[1736336563867,1.6156,195.41,195.37,137.6527358]
[1736336564173,1.6156,195.41,195.37,137.1]
[1736336564492,1.6156,195.41,195.38,23.776884]
[1736336564679,17.64,195.45,195.4,23.776884]
[1736336564886,17.64,195.45,195.41,0.55245477]
[1736336567580,17.64,195.45,195.42,23.776884]
[1736336567774,17.64,195.45,195.44,160.876884]
[1736336567989,17.64,195.45,195.44,186.14415143]
[1736336568684,17.64,195.45,195.44,196.14415143]
[1736336568994,17.64,195.45,195.44,197.07976923]
[1736336569297,8.82,195.48,195.47,165.876884]
[1736336569590,8.82,195.48,195.47,197.07962563]
[1736336570871,8.82,195.48,195.47,187.07962563]
[1736336571177,8.82,195.48,195.47,197.07962563]
[1736336572994,8.82,195.48,195.47,205.02082563]
[1736336573197,8.82,195.48,195.47,235.02082563]
[1736336574397,8.82,195.48,195.47,203.74212563]
[1736336574575,8.82,195.48,195.47,206.70212563]
[1736336574775,8.82,195.48,195.47,236.70212563]
[1736336575986,3.9972,195.51,195.5,20.0]
[1736336576180,3.9972,195.51,195.5,45.26726743]
[1736336576482,3.9972,195.51,195.5,211.69508345]
[1736336576681,3.9972,195.51,195.5,211.14415143]
[1736336576883,3.9972,195.51,195.5,216.14415143]
[1736336577486,3.9972,195.51,195.5,211.14415143]
[1736336577693,3.9972,195.51,195.5,216.14415143]
[1736336578385,3.9972,195.51,195.5,211.14415143]
[1736336578700,3.9972,195.51,195.5,222.39625143]
[1736336579082,3.9972,195.51,195.5,223.33158208]
[1736336579295,3.9972,195.51,195.5,278.59884951]
[1736336580095,3.9972,195.51,195.5,253.33158208]
[1736336580983,3.9972,195.51,195.5,223.33158208]
[1736336581179,3.9972,195.51,195.5,278.59884951]
[1736336581379,3.9972,195.51,195.5,253.33158208]
[1736336581582,3.9972,195.51,195.5,223.33158208]
[1736336581878,3.9972,195.51,195.5,226.25158208]
[1736336582078,3.9972,195.51,195.5,221.25158208]
[1736336582274,3.9972,195.51,195.5,226.25158208]
[1736336582478,1.5189,195.66,195.54,137.1]
[1736336582695,1.5189,195.66,195.56,49.04415143]
[1736336582882,1.5189,195.66,195.57,0.55059224]
[1736336584421,1.5189,195.66,195.58,157.1]
[1736336584720,1.5189,195.66,195.59,0.55051889]
[1736336586797,1.5189,195.66,195.59,25.81778632]
[1736336587099,1.5189,195.66,195.59,137.65051889]
[1736336587308,1.5189,195.66,195.6,23.776884]
[1736336587517,1.5189,195.66,195.61,0.55020783]
[1736336587713,1.6396,195.71,195.64,20.0]
[1736336588013,1.6396,195.71,195.63,137.1]
[1736336588214,21.6396,195.71,195.63,137.1]
[1736336588594,21.6396,195.71,195.6,137.1]
[1736336588795,21.6396,195.71,195.61,24.32732598]
[1736336589193,21.6396,195.71,195.61,0.55044198]
[1736336591413,21.6396,195.71,195.61,137.65044198]
[1736336591621,21.6396,195.71,195.61,137.1]
[1736336591817,20.0,195.67,195.58,137.1]
[1736336592602,21.6396,195.71,195.55,162.36726743]
[1736336592794,20.0,195.69,195.56,25.81801647]
[1736336593015,20.0,195.69,195.56,0.55074904]
[1736336593319,20.0,195.67,195.56,137.65074904]
[1736336593491,20.0,195.67,195.56,152.80114054]
[1736336594000,20.0,195.67,195.56,137.1]
[1736336594508,24.5596,195.71,195.56,137.1]
[1736336594709,23.776884,195.69,195.56,137.1]
[1736336594920,6.3893,195.67,195.56,137.1]
[1736336595216,1.5671,195.66,195.56,137.1]
[1736336595513,1.5671,195.66,195.59,152.80114054]
[1736336595713,1.5671,195.66,195.6,137.65024886]
[1736336595915,1.5671,195.66,195.6,137.1]
[1736336596511,6.1238,195.65,195.57,137.1]
[1736336597521,6.1238,195.65,195.53,137.1]
[1736336597723,6.1238,195.65,195.54,137.65108209]
[1736336597897,6.1238,195.65,195.54,137.1]
[1736336598103,6.1238,195.65,195.55,137.65112014]
[1736336598303,6.1238,195.65,195.55,137.1]
[1736336598713,20.0,195.61,195.51,137.1]
[1736336599019,1.5771,195.6,195.48,137.1]
[1736336599224,1.5771,195.6,195.5,15.70114054]
[1736336599421,1.5771,195.6,195.51,0.5512318]
[1736336601826,1.5771,195.6,195.51,16.25237234]
[1736336602195,1.5771,195.6,195.52,23.776884]
[1736336602405,1.5771,195.6,195.53,0.55114319]
[1736336603313,1.5771,195.6,195.5,24.32818165]
[1736336603702,1.5771,195.6,195.5,0.55129765]
[1736336604815,1.5771,195.6,195.5,137.65129765]
[1736336605014,1.5771,195.6,195.5,137.1]
[1736336605237,1.5771,195.6,195.5,152.80114054]
[1736336605720,1.5771,195.6,195.5,137.1]
[1736336606108,1.5771,195.6,195.51,0.55134103]
[1736336610712,20.0,195.56,195.48,137.1]
[1736336610917,20.0,195.56,195.49,0.55182091]
[1736336611225,20.0,195.56,195.46,137.65183692]
[1736336611539,21.5603,195.55,195.46,137.1]
[1736336612122,1.5603,195.55,195.46,137.1]
[1736336612505,1.5603,195.55,195.47,0.55197626]
[1736336616014,20.0,195.51,195.42,137.1]
[1736336616212,1.6384,195.5,195.43,0.55235211]
[1736336616406,1.6384,195.5,195.42,137.1]
[1736336616407,1.6384,195.5,195.38,137.1]
[1736336616616,1.6384,195.5,195.39,0.55247297]
[1736336617948,1.6384,195.5,195.39,137.65247297]
[1736336618133,1.6384,195.5,195.39,137.1]
[1736336618443,1.6384,195.5,195.4,16.25367907]
[1736336619508,1.6384,195.5,195.4,0.55253853]
[1736336620426,1.6384,195.5,195.35,15.70114054]
[1736336620427,20.0,195.45,195.35,137.1]
[1736336620735,1.5842,195.44,195.36,0.55288276]
[1736336620915,1.5842,195.44,195.36,137.65288276]
[1736336621118,1.5842,195.44,195.36,137.1]
[1736336621316,1.5842,195.44,195.37,0.55288543]
[1736336622512,1.5842,195.44,195.36,137.1]
[1736336623715,1.5842,195.44,195.31,152.80114054]
[1736336623923,1.5842,195.44,195.32,0.55306591]
[1736336624110,1.5842,195.44,195.34,15.70114054]
[1736336624324,1.5842,195.44,195.35,137.65291875]
[1736336624538,1.5842,195.44,195.35,137.1]
[1736336625351,1.5842,195.44,195.36,15.70114054]
[1736336625534,1.5842,195.44,195.37,0.55276617]
[1736336626132,1.5842,195.44,195.37,16.25390671]
[1736336626345,1.5842,195.44,195.37,0.55276617]
[1736336627045,1.5842,195.44,195.35,137.1]
[1736336627046,1.5842,195.44,195.36,0.55296246]
[1736336631132,1.5842,195.44,195.32,137.1]
[1736336631338,1.5842,195.44,195.33,0.55332671]
[1736336631848,1.5542,195.38,195.28,137.1]
[1736336632041,1.5542,195.38,195.29,0.55359397]
[1736336632442,1.5542,195.38,195.3,15.70114054]
[1736336632757,1.5542,195.38,195.31,0.5534015]
[1736336632940,1.5542,195.38,195.32,152.80114054]
[1736336633245,1.5542,195.38,195.33,0.55318508]
[1736336637756,1.5542,195.38,195.33,137.65318508]
[1736336637931,1.5542,195.38,195.33,137.1]
[1736336638749,1.5542,195.38,195.34,23.776884]
[1736336638955,1.627,195.43,195.35,16.25395015]
[1736336639136,1.627,195.43,195.35,0.55280961]
[1736336643655,1.627,195.43,195.35,137.65280961]
[1736336643850,1.627,195.43,195.35,137.1]
[1736336644050,1.627,195.43,195.36,0.55287585]
[1736336645238,1.627,195.43,195.38,10.07115229]
[1736336645440,0.95925926,195.54,195.4,10.07115229]
[1736336645441,1.6143,195.48,195.4,10.07115229]
[1736336645739,1.6143,195.48,195.41,0.55232811]
[1736336645939,1.6143,195.48,195.42,147.17115229]
[1736336646164,1.6143,195.48,195.43,0.55215834]
[1736336646534,1.6658,195.52,195.43,10.62331063]